fUSD/lending_fUSD_20250629
["ID","MTS","AMOUNT","RATE_DAILY","PERIOD"]
[368538879,1751201447839,-1229.38,0.00024657,2]
[368538881,1751201447847,-2217.91,0.00024657,2]
[368538883,1751201447856,-2714.07,0.00024657,2]
[368538885,1751201447864,-2226.72,0.00024657,2]
[368538886,1751201447873,-490.0,0.00024657,2]
[368538888,1751201447882,-558.0,0.00024657,2]
[368538891,1751201447893,-2368.88,0.00024657,2]
[368538893,1751201447902,-493.22167133,0.00024657,2]
[368538895,1751201447911,-490.0,0.00024657,2]
[368538896,1751201447921,-500.0,0.00024657,2]
[368538899,1751201447931,-500.0,0.00024657,2]
[368538900,1751201447940,-500.0,0.00024657,2]
[368538902,1751201447949,-500.0,0.00024657,2]
[368538904,1751201447959,-500.0,0.00024657,2]
[368538906,1751201447968,-500.0,0.00024657,2]
[368538908,1751201447978,-500.0,0.00024657,2]
[368538910,1751201447987,-22757.68,0.00024657,2]
[368538912,1751201447996,-500.0,0.00024657,2]
[368538914,1751201448006,-500.0,0.00024657,2]
[368538916,1751201448015,-490.0,0.00024657,2]
[368538918,1751201448025,-490.0,0.00024657,2]
[368538920,1751201448034,-500.0,0.00024657,2]
[368538922,1751201448043,-673.33,0.00024657,2]
[368538924,1751201448051,-2930.2,0.00024657,2]
[368538926,1751201448061,-4676.9,0.00024657,2]
[368538928,1751201448070,-3085.02,0.00024657,2]
[368538930,1751201448079,-199.519423,0.00024657,2]
[368538932,1751201448089,-490.0,0.00024657,2]
[368538934,1751201448098,-490.0,0.00024657,2]
[368538936,1751201448108,-1480.46,0.00024657,2]
[368538938,1751201448117,-490.0,0.00024657,2]
[368538940,1751201448127,-1980.31,0.00024657,2]
[368538942,1751201448136,-490.0,0.00024657,2]
[368538944,1751201448145,-508.31,0.00024657,2]
[368538946,1751201448154,-2722.07,0.00024657,2]
[368538948,1751201448163,-490.0,0.00024657,2]
[368538950,1751201448172,-490.0,0.00024657,2]
[368538952,1751201448181,-1115.4,0.00024657,2]
[368538954,1751201448191,-1002.36,0.00024657,2]
[368538956,1751201448199,-1865.6,0.00024657,2]
[368538958,1751201448209,-964.89,0.00024657,2]
[368538959,1751201448217,-490.0,0.00024657,2]
[368538983,1751201448428,-490.0,0.00024657,2]
[368538985,1751201448438,-1341.54,0.00024657,2]
[368538987,1751201448447,-2008.28,0.00024657,2]
[368538989,1751201448457,-4700.51,0.00024657,2]
[368538991,1751201448466,-490.0,0.00024657,2]
[368538993,1751201448475,-490.0,0.00024657,2]
[368538995,1751201448485,-490.0,0.00024657,2]
[368538997,1751201448494,-1174.42,0.00024657,2]
[368538999,1751201448504,-490.0,0.00024657,2]
[368539001,1751201448513,-1307.54,0.00024657,2]
[368539003,1751201448522,-490.0,0.00024657,2]
[368539005,1751201448532,-490.0,0.00024657,2]
[368539007,1751201448541,-1808.41,0.00024657,2]
[368539009,1751201448551,-490.0,0.00024657,2]
[368539011,1751201448560,-490.0,0.00024657,2]
[368539014,1751201448570,-873.8,0.00024657,2]
[368539015,1751201448580,-548.67,0.00024657,2]
[368539017,1751201448590,-605.96,0.00024657,2]
[368539019,1751201448599,-1331.31,0.00024657,2]
[368539021,1751201448609,-3578.16,0.00024657,2]
[368539023,1751201448618,-1331.31,0.00024657,2]
[368539025,1751201448627,-1331.31,0.00024657,2]
[368539027,1751201448636,-184.68740155,0.00024657,2]
[368539030,1751201448646,-1331.31,0.00024657,2]
[368539032,1751201448656,-1331.31,0.00024657,2]
[368539034,1751201448670,-490.0,0.00024657,2]
[368539035,1751201448679,-490.0,0.00024657,2]
[368539037,1751201448688,-1331.31,0.00024657,2]
[368539039,1751201448697,-1331.31,0.00024657,2]
[368539041,1751201448707,-2341.49,0.00024657,2]
[368539044,1751201448716,-1331.31,0.00024657,2]
[368539045,1751201448726,-1331.31,0.00024657,2]
[368539047,1751201448736,-1078.11,0.00024657,2]
[368539050,1751201448746,-1331.31,0.00024657,2]
[368539052,1751201448756,-1331.31,0.00024657,2]
[368539053,1751201448766,-490.0,0.00024657,2]
[368539055,1751201448776,-640.81,0.00024657,2]
[368539058,1751201448786,-673.51,0.00024657,2]
[368539060,1751201448796,-1162.04,0.00024657,2]
[368539061,1751201448805,-9457.27,0.00024657,2]
[368539062,1751201448815,-490.0,0.00024657,2]
[368539063,1751201448824,-2780.87,0.00024657,2]
[368539064,1751201448833,-490.0,0.00024657,2]
[368539065,1751201448843,-3032.62,0.00024657,2]
[368539066,1751201448852,-1793.39,0.00024657,2]
[368539067,1751201448861,-4398.91,0.00024657,2]
[368539068,1751201448870,-490.0,0.00024657,2]
[368539069,1751201448879,-490.0,0.00024657,2]
[368539070,1751201448888,-490.0,0.00024657,2]
[368539071,1751201448897,-1718.98,0.00024657,2]
[368539072,1751201448906,-513.99166429,0.00024657,2]
[368539073,1751201448914,-490.0,0.00024657,2]
[368539074,1751201448923,-8345.96,0.00024657,2]
[368539076,1751201448933,-490.0,0.00024657,2]
[368539079,1751201448945,-2479.8,0.00024657,2]
[368539081,1751201448955,-2014.04,0.00024657,2]
[368539083,1751201448964,-2052.64,0.00024657,2]
[368539085,1751201448974,-490.0,0.00024657,2]
[368539087,1751201448983,-497.03,0.00024657,2]
[368539089,1751201448993,-1762.71,0.00024657,2]
[368539091,1751201449002,-183.968644,0.00024657,2]
[368539092,1751201449012,-490.0,0.00024657,2]
[368539094,1751201449022,-758.54,0.00024657,2]
[368539096,1751201449032,-490.0,0.00024657,2]
[368539098,1751201449041,-4880.13,0.00024657,2]
[368539100,1751201449051,-12487.92,0.00024657,2]
[368539103,1751201449061,-490.0,0.00024657,2]
[368539104,1751201449070,-490.0,0.00024657,2]
[368539106,1751201449080,-11788.92,0.00024657,2]
[368539108,1751201449089,-1241.12,0.00024657,2]
[368539110,1751201449099,-3971.57,0.00024657,2]
[368539112,1751201449108,-10935.46,0.00024657,2]
[368539114,1751201449117,-1710.42,0.00024657,2]
[368539116,1751201449126,-500.0,0.00024657,2]
[368539118,1751201449136,-1225.94,0.00024657,2]
[368539120,1751201449145,-490.0,0.00024657,2]
[368539122,1751201449155,-517.19671424,0.00024657,2]
[368539124,1751201449164,-1046.69,0.00024657,2]
[368539126,1751201449173,-490.0,0.00024657,2]
[368539128,1751201449183,-1295.34,0.00024657,2]
[368539130,1751201449192,-490.0,0.00024657,2]
[368539131,1751201449201,-490.0,0.00024657,2]
[368539133,1751201449210,-490.0,0.00024657,2]
[368539135,1751201449219,-920.38,0.00024657,2]
[368539137,1751201449228,-490.0,0.00024657,2]
[368539139,1751201449237,-490.0,0.00024657,2]
[368539141,1751201449246,-490.0,0.00024657,2]
[368539143,1751201449255,-2009.31,0.00024657,2]
[368539145,1751201449265,-490.0,0.00024657,2]
[368539147,1751201449276,-490.0,0.00024657,2]
[368539149,1751201449285,-1140.01,0.00024657,2]
[368539151,1751201449294,-490.0,0.00024657,2]
[368539153,1751201449303,-490.0,0.00024657,2]
[368539155,1751201449313,-534.37,0.00024657,2]
[368539157,1751201449322,-1847.5,0.00024657,2]
[368539159,1751201449331,-1348.89,0.00024657,2]
[368539161,1751201449340,-2352.84,0.00024657,2]
[368539163,1751201449349,-490.0,0.00024657,2]
[368539165,1751201449359,-814.75,0.00024657,2]
[368539167,1751201449369,-490.0,0.00024657,2]
[368539169,1751201449378,-490.0,0.00024657,2]
[368539171,1751201449387,-4679.2,0.00024657,2]
[368539173,1751201449396,-2056.82,0.00024657,2]
[368539175,1751201449405,-490.0,0.00024657,2]
[368539177,1751201449414,-5998.04,0.00024657,2]
[368539179,1751201449423,-697.14,0.00024657,2]
[368539181,1751201449432,-490.0,0.00024657,2]
[368539183,1751201449441,-1000.0,0.00024657,2]
[368539185,1751201449450,-1364.48,0.00024657,2]
[368539187,1751201449459,-490.0,0.00024657,2]
[368539189,1751201449468,-490.0,0.00024657,2]
[368539191,1751201449478,-490.0,0.00024657,2]
[368539193,1751201449487,-490.0,0.00024657,2]
[368539195,1751201449495,-2095.58,0.00024657,2]
[368539197,1751201449504,-4343.28,0.00024657,2]
[368539199,1751201449513,-490.0,0.00024657,2]
[368539200,1751201449522,-490.0,0.00024657,2]
[368539202,1751201449531,-490.0,0.00024657,2]
[368539204,1751201449541,-490.0,0.00024657,2]
[368539206,1751201449550,-4762.9,0.00024657,2]
[368539208,1751201449559,-1128.7,0.00024657,2]
[368539210,1751201449568,-490.0,0.00024657,2]
[368539212,1751201449577,-2069.14,0.00024657,2]
[368539214,1751201449586,-490.0,0.00024657,2]
[368539216,1751201449596,-490.0,0.00024657,2]
[368539218,1751201449606,-2756.7,0.00024657,2]
[368539221,1751201449621,-490.0,0.00024657,2]
[368539224,1751201449641,-2725.5,0.00024657,2]
[368539227,1751201449660,-5905.19,0.00024657,2]
[368539230,1751201449681,-2032.8,0.00024657,2]
[368539232,1751201449696,-490.0,0.00024657,2]
[368539234,1751201449716,-1556.56,0.00024657,2]
[368539236,1751201449735,-490.0,0.00024657,2]
[368539238,1751201449756,-623.0374763,0.00024657,2]
[368539240,1751201449775,-774.49,0.00024657,2]
[368539243,1751201449793,-490.0,0.00024657,2]
[368539244,1751201449810,-490.0,0.00024657,2]
[368539246,1751201449824,-568.55,0.00024657,2]
[368539249,1751201449842,-490.0,0.00024657,2]
[368539250,1751201449856,-1369.19,0.00024657,2]
[368539253,1751201449874,-1974.51,0.00024657,2]
[368539254,1751201449888,-5766.91,0.00024657,2]
[368539256,1751201449903,-490.0,0.00024657,2]
[368539258,1751201449918,-490.0,0.00024657,2]
[368539260,1751201449935,-1184.06,0.00024657,2]
[368539262,1751201449950,-1673.1,0.00024657,2]
[368539264,1751201449965,-490.0,0.00024657,2]
[368539266,1751201449982,-3083.67,0.00024657,2]
[368539268,1751201449998,-1046.36,0.00024657,2]
[368539270,1751201450013,-490.0,0.00024657,2]
[368539272,1751201450028,-658.9,0.00024657,2]
[368539274,1751201450044,-3345.91,0.00024657,2]
[368539276,1751201450058,-490.0,0.00024657,2]
[368539279,1751201450078,-1978.82,0.00024657,2]
[368539281,1751201450093,-490.0,0.00024657,2]
[368539283,1751201450109,-609.82,0.00024657,2]
[368539285,1751201450124,-490.0,0.00024657,2]
[368539287,1751201450138,-490.0,0.00024657,2]
[368539289,1751201450153,-490.0,0.00024657,2]
[368539291,1751201450168,-502.79,0.00024657,2]
[368539293,1751201450184,-490.0,0.00024657,2]
[368539296,1751201450198,-3044.2,0.00024657,2]
[368539298,1751201450214,-490.0,0.00024657,2]
[368539300,1751201450229,-490.0,0.00024657,2]
[368539302,1751201450244,-490.0,0.00024657,2]
[368539304,1751201450259,-2746.29,0.00024657,2]
[368539306,1751201450275,-490.0,0.00024657,2]
[368539308,1751201450291,-970.0,0.00024657,2]
[368539311,1751201450306,-308.39780072,0.00024657,2]
[368539313,1751201450321,-490.0,0.00024657,2]
[368539315,1751201450336,-1411.6,0.00024657,2]
[368539317,1751201450352,-490.0,0.00024657,2]
[368539319,1751201450367,-490.0,0.00024657,2]
[368539321,1751201450382,-1205.22,0.00024657,2]
[368539323,1751201450398,-2722.13,0.00024657,2]
[368539325,1751201450414,-1375.69,0.00024657,2]
[368539327,1751201450429,-490.0,0.00024657,2]
[368539329,1751201450445,-545.53555319,0.00024657,2]
[368539332,1751201450460,-490.0,0.00024657,2]
[368539334,1751201450476,-490.0,0.00024657,2]
[368539336,1751201450491,-577.1381628,0.00024657,2]
[368539338,1751201450506,-490.0,0.00024657,2]
[368539340,1751201450522,-1241.4,0.00024657,2]
[368539342,1751201450539,-2474.53,0.00024657,2]
[368539344,1751201450555,-492.86,0.00024657,2]
[368539346,1751201450571,-490.0,0.00024657,2]
[368539348,1751201450587,-490.0,0.00024657,2]
[368539351,1751201450602,-490.0,0.00024657,2]
[368539353,1751201450618,-2367.77,0.00024657,2]
[368539355,1751201450633,-7583.27,0.00024657,2]
[368539357,1751201450647,-2241.35,0.00024657,2]
[368539359,1751201450663,-2866.87,0.00024657,2]
[368539361,1751201450679,-482.04879743,0.00024657,2]
[368539363,1751201450693,-6521.19,0.00024657,2]
[368539365,1751201450708,-2600.65,0.00024657,2]
[368539367,1751201450723,-490.0,0.00024657,2]
[368539369,1751201450738,-490.0,0.00024657,2]
[368539371,1751201450753,-171.70786693,0.00024657,2]
[368539374,1751201450768,-490.0,0.00024657,2]
[368539377,1751201450784,-151.959357,0.00024657,2]
[368539379,1751201450799,-555.47,0.00024657,2]
[368539382,1751201450814,-254.8419874,0.00024657,2]
[368539383,1751201450828,-633.24,0.00024657,2]
[368539384,1751201450842,-490.0,0.00024657,2]
[368539385,1751201450857,-490.0,0.00024657,2]
[368539386,1751201450872,-170.73721417,0.00024657,2]
[368539387,1751201450886,-490.0,0.00024657,2]
[368539388,1751201450901,-490.0,0.00024657,2]
[368539389,1751201450916,-490.0,0.00024657,2]
[368539390,1751201450932,-659.09,0.00024657,2]
[368539391,1751201450947,-735.99,0.00024657,2]
[368539392,1751201450961,-490.0,0.00024657,2]
[368539393,1751201450976,-490.0,0.00024657,2]
[368539394,1751201450991,-490.0,0.00024657,2]
[368539395,1751201451007,-1548.97,0.00024657,2]
[368539397,1751201451022,-1951.34,0.00024657,2]
[368539398,1751201451038,-490.0,0.00024657,2]
[368539401,1751201451053,-312.00850996,0.00024657,2]
[368539403,1751201451069,-490.0,0.00024657,2]
[368539406,1751201451084,-490.0,0.00024657,2]
[368539409,1751201451099,-490.0,0.00024657,2]
[368539411,1751201451114,-2821.02,0.00024657,2]
[368539414,1751201451129,-490.0,0.00024657,2]
[368539416,1751201451145,-490.0,0.00024657,2]
[368539419,1751201451162,-490.0,0.00024657,2]
[368539422,1751201451177,-14864.1,0.00024657,2]
[368539424,1751201451192,-490.0,0.00024657,2]
[368539427,1751201451207,-490.0,0.00024657,2]
[368539429,1751201451222,-490.0,0.00024657,2]
[368539432,1751201451236,-490.0,0.00024657,2]
[368539435,1751201451251,-732.61,0.00024657,2]
[368539437,1751201451265,-3007.84,0.00024657,2]
[368539440,1751201451281,-490.0,0.00024657,2]
[368539443,1751201451296,-30654.23,0.00024657,2]
[368539445,1751201451310,-490.0,0.00024657,2]
[368539447,1751201451324,-308.03097178,0.00024657,2]
[368539450,1751201451339,-1151.43,0.00024657,2]
[368539453,1751201451354,-502.92973013,0.00024657,2]
[368539455,1751201451369,-565.86,0.00024657,2]
[368539458,1751201451383,-490.0,0.00024657,2]
[368539460,1751201451398,-490.0,0.00024657,2]
[368539463,1751201451409,-2522.43,0.00024657,2]
[368539465,1751201451419,-1188.06,0.00024657,2]
[368539467,1751201451428,-490.0,0.00024657,2]
[368539469,1751201451438,-3060.81,0.00024657,2]
[368539471,1751201451446,-1689.56,0.00024657,2]
[368539473,1751201451456,-490.0,0.00024657,2]
[368539475,1751201451465,-2434.94,0.00024657,2]
[368539477,1751201451474,-490.0,0.00024657,2]
[368539479,1751201451484,-490.0,0.00024657,2]
[368539516,1751201451832,-1835.32,0.00024657,2]
[368539519,1751201451854,-4503.78,0.00024657,2]
[368539523,1751201451882,-4637.25,0.00024657,2]
[368539526,1751201451902,-490.0,0.00024657,2]
[368539528,1751201451912,-490.0,0.00024657,2]
[368539530,1751201451922,-490.0,0.00024657,2]
[368539532,1751201451932,-490.0,0.00024657,2]
[368539534,1751201451942,-14911.87,0.00024657,2]
[368539536,1751201451951,-3165.31,0.00024657,2]
[368539538,1751201451960,-490.0,0.00024657,2]
[368539540,1751201451969,-490.0,0.00024657,2]
[368539542,1751201451978,-490.0,0.00024657,2]
[368539544,1751201451987,-1756.69,0.00024657,2]
[368539546,1751201451999,-1741.54,0.00024657,2]
[368539548,1751201452008,-3042.94,0.00024657,2]
[368539550,1751201452018,-843.03,0.00024657,2]
[368539552,1751201452028,-490.0,0.00024657,2]
[368539554,1751201452037,-490.0,0.00024657,2]
[368539556,1751201452046,-490.0,0.00024657,2]
[368539558,1751201452055,-1719.03,0.00024657,2]
[368539560,1751201452064,-22261.02,0.00024657,2]
[368539562,1751201452074,-971.44,0.00024657,2]
[368539564,1751201452083,-744.67,0.00024657,2]
[368539566,1751201452092,-490.0,0.00024657,2]
[368539568,1751201452101,-490.0,0.00024657,2]
[368539570,1751201452110,-490.0,0.00024657,2]
[368539572,1751201452119,-2994.27,0.00024657,2]
[368539574,1751201452128,-341.81424652,0.00024657,2]
[368539576,1751201452138,-490.0,0.00024657,2]
[368539578,1751201452147,-5396.79,0.00024657,2]
[368539580,1751201452156,-2188.62,0.00024657,2]
[368539582,1751201452165,-490.0,0.00024657,2]
[368539584,1751201452174,-490.0,0.00024657,2]
[368539586,1751201452183,-519.36546108,0.00024657,2]
[368539588,1751201452192,-490.0,0.00024657,2]
[368539590,1751201452204,-8364.13,0.00024657,2]
[368539592,1751201452213,-490.0,0.00024657,2]
[368539594,1751201452222,-1801.67,0.00024657,2]
[368539596,1751201452232,-490.0,0.00024657,2]
[368539598,1751201452241,-490.0,0.00024657,2]
[368539600,1751201452251,-738.25,0.00024657,2]
[368539602,1751201452259,-2524.32,0.00024657,2]
[368539604,1751201452268,-490.0,0.00024657,2]
[368539606,1751201452277,-490.0,0.00024657,2]
[368539608,1751201452287,-490.0,0.00024657,2]
[368539610,1751201452296,-313.55979703,0.00024657,2]
[368539612,1751201452305,-490.0,0.00024657,2]
[368539614,1751201452314,-2457.46,0.00024657,2]
[368539616,1751201452323,-490.0,0.00024657,2]
[368539618,1751201452332,-490.0,0.00024657,2]
[368539620,1751201452341,-490.0,0.00024657,2]
[368539622,1751201452351,-490.0,0.00024657,2]
[368539624,1751201452360,-7725.05,0.00024657,2]
[368539625,1751201452368,-590.69,0.00024657,2]
[368539627,1751201452378,-3066.62,0.00024657,2]
[368539629,1751201452387,-7031.44,0.00024657,2]
[368539631,1751201452396,-490.0,0.00024657,2]
[368539633,1751201452405,-490.0,0.00024657,2]
[368539635,1751201452415,-3573.98,0.00024657,2]
[368539637,1751201452424,-491.04939212,0.00024657,2]
[368539640,1751201452433,-985.07,0.00024657,2]
[368539641,1751201452443,-751.99,0.00024657,2]
[368539643,1751201452452,-1330.5,0.00024657,2]
[368539645,1751201452461,-490.0,0.00024657,2]
[368539648,1751201452471,-5458.43,0.00024657,2]
[368539650,1751201452480,-490.0,0.00024657,2]
[368539651,1751201452489,-652.84,0.00024657,2]
[368539654,1751201452498,-490.0,0.00024657,2]
[368539655,1751201452508,-490.0,0.00024657,2]
[368539658,1751201452517,-2295.54,0.00024657,2]
[368539660,1751201452527,-2534.03,0.00024657,2]
[368539662,1751201452537,-718.8,0.00024657,2]
[368539664,1751201452546,-1776.73,0.00024657,2]
[368539666,1751201452555,-490.0,0.00024657,2]
[368539668,1751201452564,-490.0,0.00024657,2]
[368539669,1751201452573,-2443.29,0.00024657,2]
[368539671,1751201452583,-490.0,0.00024657,2]
[368539673,1751201452592,-340.04965795,0.00024657,2]
[368539675,1751201452601,-490.0,0.00024657,2]
[368539677,1751201452610,-490.0,0.00024657,2]
[368539679,1751201452619,-4064.61,0.00024657,2]
[368539681,1751201452628,-490.0,0.00024657,2]
[368539683,1751201452637,-2331.66,0.00024657,2]
[368539685,1751201452646,-2501.95,0.00024657,2]
[368539687,1751201452655,-3661.05,0.00024657,2]
[368539689,1751201452669,-490.0,0.00024657,2]
[368539691,1751201452678,-647.63,0.00024657,2]
[368539693,1751201452687,-490.0,0.00024657,2]
[368539695,1751201452696,-490.0,0.00024657,2]
[368539697,1751201452705,-151.0,0.00024658,2]
[368539699,1751201452716,-153.0,0.00024658,2]
[368539701,1751201452725,-153.0,0.00024658,2]
[368539703,1751201452734,-153.0,0.00024658,2]
[368539705,1751201452744,-153.0,0.00024658,2]
[368539707,1751201452754,-153.0,0.00024658,2]
[368539709,1751201452765,-153.0,0.00024658,2]
[368539711,1751201452775,-153.0,0.00024658,2]
[368539713,1751201452784,-153.0,0.00024658,2]
[368539715,1751201452793,-153.0,0.00024658,2]
[368539717,1751201452802,-153.0,0.00024658,2]
[368539719,1751201452811,-153.0,0.00024658,2]
[368539721,1751201452820,-153.0,0.00024658,2]
[368539723,1751201452829,-153.0,0.00024658,2]
[368539725,1751201452838,-153.0,0.00024658,2]
[368539727,1751201452847,-153.0,0.00024658,2]
[368539729,1751201452857,-153.0,0.00024658,2]
[368539731,1751201452866,-153.0,0.00024658,2]
[368539733,1751201452875,-153.0,0.00024658,2]
[368539735,1751201452886,-153.0,0.00024658,2]
[368539737,1751201452895,-153.0,0.00024658,2]
[368539739,1751201452904,-153.0,0.00024658,2]
[368539741,1751201452913,-153.0,0.00024658,2]
[368539743,1751201452922,-153.0,0.00024658,2]
[368539745,1751201452931,-153.0,0.00024658,2]
[368539747,1751201452941,-153.0,0.00024658,2]
[368539749,1751201452950,-153.0,0.00024658,2]
[368539751,1751201452959,-153.0,0.00024658,2]
[368539753,1751201452969,-153.0,0.00024658,2]
[368539755,1751201452978,-153.0,0.00024658,2]
[368539758,1751201452988,-153.0,0.00024658,2]
[368539759,1751201452997,-153.0,0.00024658,2]
[368539762,1751201453007,-153.0,0.00024658,2]
[368539763,1751201453016,-153.0,0.00024658,2]
[368539765,1751201453027,-153.0,0.00024658,2]
[368539767,1751201453036,-153.0,0.00024658,2]
[368539769,1751201453046,-153.0,0.00024658,2]
[368539772,1751201453055,-153.0,0.00024658,2]
[368539773,1751201453064,-153.0,0.00024658,2]
[368539775,1751201453073,-153.0,0.00024658,2]
[368539777,1751201453082,-153.0,0.00024658,2]
[368539779,1751201453091,-153.0,0.00024658,2]
[368539781,1751201453100,-153.0,0.00024658,2]
[368539783,1751201453109,-153.0,0.00024658,2]
[368539785,1751201453119,-153.0,0.00024658,2]
[368539787,1751201453128,-153.0,0.00024658,2]
[368539789,1751201453137,-153.0,0.00024658,2]
[368539791,1751201453146,-153.0,0.00024658,2]
[368539793,1751201453155,-153.0,0.00024658,2]
[368539795,1751201453165,-153.0,0.00024658,2]
[368539797,1751201453174,-153.0,0.00024658,2]
[368539799,1751201453183,-153.0,0.00024658,2]
[368539802,1751201453193,-153.0,0.00024658,2]
[368539803,1751201453202,-153.0,0.00024658,2]
[368539805,1751201453211,-153.0,0.00024658,2]
[368539807,1751201453220,-153.0,0.00024658,2]
[368539809,1751201453229,-500.0,0.00024673,2]
[368539811,1751201453240,-157.2498453,0.00024673,2]
[368539813,1751201453249,-531.74152762,0.00024673,2]
[368539815,1751201453258,-500.0,0.00024673,2]
[368539817,1751201453267,-500.0,0.00024673,2]
[368539819,1751201453276,-500.0,0.00024673,2]
[368539822,1751201453286,-500.0,0.00024673,2]
[368539824,1751201453299,-333.88821153,0.00024673,2]
[368539826,1751201453309,-500.0,0.00024673,2]
[368539828,1751201453319,-500.0,0.00024673,2]
[368539830,1751201453328,-500.0,0.00024673,2]
[368539832,1751201453338,-399.68627834,0.00024673,2]
[368539834,1751201453347,-154.03844298,0.00024673,2]
[368539836,1751201453357,-499.1996,0.00024673,2]
[368539838,1751201453366,-500.0,0.00024673,2]
[368539840,1751201453376,-500.0,0.00024673,2]
[368539842,1751201453386,-500.0,0.00024673,2]
[368539844,1751201453395,-500.0,0.00024673,2]
[368539846,1751201453405,-273.34954719,0.00024673,2]
[368539848,1751201453414,-500.0,0.00024673,2]
[368539850,1751201453423,-513.90456754,0.00024673,2]
[368539852,1751201453433,-7000.0,0.000247,9]
[368539854,1751201453443,-502.0,0.00024706,5]
[368539856,1751201453452,-904.64816668,0.00024762,11]
[368539858,1751201453462,-524.13,0.00024799,2]
[368539860,1751201453471,-500.0,0.00024799,3]
[368539862,1751201453481,-8700.0,0.000248,9]
[368539864,1751201453490,-223019.744596,0.000248,2]
[368539866,1751201453499,-288.74,0.00024821,2]
[368539868,1751201453509,-300.0,0.00024827,2]
[368539870,1751201453518,-288.74,0.00024827,2]
[368539872,1751201453527,-725.42248436,0.0002483,2]
[368539874,1751201453537,-25147.71216756,0.00024831,2]
[368539876,1751201453546,-288.74,0.00024834,2]
[368539878,1751201453555,-288.74,0.0002484,2]
[368539880,1751201453565,-288.74,0.00024847,2]
[368539882,1751201453574,-288.74,0.00024853,2]
[368539884,1751201453583,-288.74,0.0002486,2]
[368539886,1751201453593,-288.74,0.00024867,2]
[368539888,1751201453603,-288.74,0.00024873,2]
[368539890,1751201453612,-288.74,0.0002488,2]
[368539892,1751201453622,-288.74,0.00024886,2]
[368539893,1751201453631,-288.74,0.00024893,2]
[368539894,1751201453641,-288.74,0.00024899,2]
[368539895,1751201453651,-1700.0,0.000249,9]
[368539896,1751201453661,-172643.673474,0.000249,2]
[368539897,1751201453674,-288.74,0.00024906,2]
[368539898,1751201453683,-288.74,0.00024912,2]
[368539899,1751201453692,-288.74,0.00024919,2]
[368539900,1751201453701,-288.74,0.00024925,2]
[368539901,1751201453712,-500.0,0.0002493,3]
[368539902,1751201453722,-500.0,0.0002493,3]
[368539903,1751201453731,-1331.31,0.0002493,3]
[368539905,1751201453740,-1331.31,0.0002493,3]
[368539906,1751201453749,-490.0,0.00024931,3]
[368539908,1751201453759,-490.0,0.00024931,3]
[368539910,1751201453768,-576.55,0.00024931,3]
[368539912,1751201453778,-490.0,0.00024931,3]
[368539914,1751201453787,-557.97,0.00024931,3]
[368539916,1751201453797,-490.0,0.00024931,3]
[368539918,1751201453807,-490.0,0.00024931,3]
[368539920,1751201453816,-490.0,0.00024931,3]
[368539922,1751201453825,-490.0,0.00024931,3]